[Event "Titled Tuesday Blitz October 04 Late 2022"]
[White "Bilych, Olexiy"]
[Black "Bluebaum, Matthias"]
[WhiteFideId "14156504"]
[BlackFideId "24651516"]
[WhiteElo "2320"]
[BlackElo "2633"]
[Result "0-1"]
[Round "05"]
[TimeControl "180+1"]
[Date "2022.10.04"]
[WhiteClock "0:00:32"]
[BlackClock "0:01:55"]

1. e4 {[%clk 0:03:00]}  e6 {[%clk 0:02:59]} 2. d4 {[%clk 0:03:00]}  d5 {[%clk 0:03:00]} 3. e5 {[%clk 0:02:56]}  c5 {[%clk 0:03:00]} 4. c3 {[%clk 0:02:56]}  Qa5 {[%clk 0:02:56]} 5. dxc5 {[%clk 0:02:51]}  Qc7 {[%clk 0:02:49]} 6. Nf3 {[%clk 0:02:49]}  Nc6 {[%clk 0:02:46]} 7. Bf4 {[%clk 0:02:30]}  Bxc5 {[%clk 0:02:43]} 8. Bd3 {[%clk 0:02:28]}  Nge7 {[%clk 0:02:40]} 9. Bg3 {[%clk 0:02:24]}  a6 {[%clk 0:02:34]} 10. O-O {[%clk 0:02:22]}  h6 {[%clk 0:02:32]} 11. Nbd2 {[%clk 0:02:12]}  Ba7 {[%clk 0:02:32]} 12. Re1 {[%clk 0:02:10]}  Qd8 {[%clk 0:02:28]} 13. Nb3 {[%clk 0:02:06]}  Nf5 {[%clk 0:02:26]} 14. Bxf5 {[%clk 0:02:05]}  exf5 {[%clk 0:02:27]} 15. Nbd4 {[%clk 0:02:01]}  Nxd4 {[%clk 0:02:26]} 16. Nxd4 {[%clk 0:02:00]}  O-O {[%clk 0:02:21]} 17. Qf3 {[%clk 0:01:45]}  Bxd4 {[%clk 0:02:21]} 18. cxd4 {[%clk 0:01:46]}  Be6 {[%clk 0:02:22]} 19. Bf4 {[%clk 0:01:42]}  Rc8 {[%clk 0:02:18]} 20. Rac1 {[%clk 0:01:39]}  Qb6 {[%clk 0:02:17]} 21. Qd3 {[%clk 0:00:55]}  Qxb2 {[%clk 0:02:10]} 22. Rb1 {[%clk 0:00:53]}  Qxa2 {[%clk 0:02:10]} 23. Rxb7 {[%clk 0:00:53]}  Rc4 {[%clk 0:02:06]} 24. Reb1 {[%clk 0:00:38]}  Qa4 {[%clk 0:01:58]} 25. Qg3 {[%clk 0:00:32]}  Rxd4 {[%clk 0:01:55]} 0-1


[Site "https://www.chess.com"]

[Event "Titled Tuesday Blitz October 04 Late 2022"]
[White "Bryakin, Mikhail"]
[Black "Melikyan, Gnel"]
[WhiteFideId "4165314"]
[BlackFideId "54109990"]
[WhiteElo "2367"]
[BlackElo "2138"]
[Result "1/2-1/2"]
[Round "05"]
[TimeControl "180+1"]
[Date "2022.10.04"]
[WhiteClock "0:00:12"]
[BlackClock "0:00:16"]

1. d4 {[%clk 0:03:00]}  Nf6 {[%clk 0:02:59]} 2. Nc3 {[%clk 0:03:01]}  d6 {[%clk 0:02:58]} 3. e4 {[%clk 0:03:01]}  e5 {[%clk 0:02:59]} 4. Nf3 {[%clk 0:03:00]}  Nc6 {[%clk 0:02:59]} 5. h3 {[%clk 0:02:54]}  g6 {[%clk 0:02:56]} 6. Be3 {[%clk 0:02:54]}  exd4 {[%clk 0:02:53]} 7. Nxd4 {[%clk 0:02:54]}  Nxd4 {[%clk 0:02:53]} 8. Bxd4 {[%clk 0:02:54]}  Bg7 {[%clk 0:02:53]} 9. Bc4 {[%clk 0:02:51]}  O-O {[%clk 0:02:53]} 10. O-O {[%clk 0:02:51]}  Re8 {[%clk 0:02:50]} 11. f3 {[%clk 0:02:49]}  Be6 {[%clk 0:02:46]} 12. Bb3 {[%clk 0:02:46]}  Nh5 {[%clk 0:02:43]} 13. Bxg7 {[%clk 0:02:44]}  Kxg7 {[%clk 0:02:43]} 14. Qd4+ {[%clk 0:02:44]}  Qf6 {[%clk 0:02:42]} 15. Qxf6+ {[%clk 0:02:44]}  Kxf6 {[%clk 0:02:40]} 16. Rfd1 {[%clk 0:02:41]}  Nf4 {[%clk 0:02:36]} 17. Kf2 {[%clk 0:02:41]}  g5 {[%clk 0:02:31]} 18. Ne2 {[%clk 0:02:36]}  Nxe2 {[%clk 0:02:30]} 19. Kxe2 {[%clk 0:02:37]}  Rad8 {[%clk 0:02:22]} 20. Kf2 {[%clk 0:02:37]}  h6 {[%clk 0:02:21]} 21. Rd2 {[%clk 0:02:33]}  Kg6 {[%clk 0:02:17]} 22. Rad1 {[%clk 0:02:33]}  f5 {[%clk 0:02:17]} 23. exf5+ {[%clk 0:02:25]}  Kxf5 {[%clk 0:02:08]} 24. Bxe6+ {[%clk 0:02:21]}  Rxe6 {[%clk 0:02:08]} 25. Rd5+ {[%clk 0:02:21]}  Kg6 {[%clk 0:02:04]} 26. c4 {[%clk 0:02:21]}  Rde8 {[%clk 0:02:03]} 27. R1d2 {[%clk 0:02:21]}  b6 {[%clk 0:01:53]} 28. b4 {[%clk 0:02:21]}  Re5 {[%clk 0:01:48]} 29. c5 {[%clk 0:02:19]}  bxc5 {[%clk 0:01:39]} 30. bxc5 {[%clk 0:02:18]}  dxc5 {[%clk 0:01:39]} 31. Rd7 {[%clk 0:02:05]}  R8e7 {[%clk 0:01:38]} 32. Rxe7 {[%clk 0:02:05]}  Rxe7 {[%clk 0:01:37]} 33. Rd5 {[%clk 0:02:05]}  Re6 {[%clk 0:01:36]} 34. Rxc5 {[%clk 0:02:04]}  Ra6 {[%clk 0:01:36]} 35. Rc2 {[%clk 0:02:03]}  h5 {[%clk 0:01:34]} 36. Ke3 {[%clk 0:02:02]}  Ra4 {[%clk 0:01:29]} 37. Rc6+ {[%clk 0:01:59]}  Kf5 {[%clk 0:01:26]} 38. g4+ {[%clk 0:01:59]}  hxg4 {[%clk 0:01:26]} 39. hxg4+ {[%clk 0:02:00]}  Ke5 {[%clk 0:01:26]} 40. Rc5+ {[%clk 0:01:58]}  Kf6 {[%clk 0:01:25]} 41. Rc6+ {[%clk 0:01:59]}  Ke5 {[%clk 0:01:25]} 42. Rg6 {[%clk 0:01:59]}  Ra3+ {[%clk 0:01:26]} 43. Kf2 {[%clk 0:01:59]}  Rxa2+ {[%clk 0:01:20]} 44. Kg3 {[%clk 0:02:00]}  c5 {[%clk 0:01:15]} 45. Rxg5+ {[%clk 0:02:00]}  Kd4 {[%clk 0:01:16]} 46. Rg8 {[%clk 0:02:00]}  c4 {[%clk 0:01:16]} 47. Rd8+ {[%clk 0:01:56]}  Ke3 {[%clk 0:01:16]} 48. Rc8 {[%clk 0:01:48]}  Kd3 {[%clk 0:01:15]} 49. g5 {[%clk 0:01:48]}  c3 {[%clk 0:01:16]} 50. f4 {[%clk 0:01:37]}  c2 {[%clk 0:01:11]} 51. g6 {[%clk 0:01:37]}  Ra1 {[%clk 0:01:01]} 52. Kf2 {[%clk 0:01:37]}  Ra6 {[%clk 0:00:55]} 53. Rd8+ {[%clk 0:00:20]}  Ke4 {[%clk 0:00:49]} 54. Rc8 {[%clk 0:00:17]}  Rxg6 {[%clk 0:00:44]} 55. Rxc2 {[%clk 0:00:17]}  Kxf4 {[%clk 0:00:44]} 56. Ra2 {[%clk 0:00:17]}  a6 {[%clk 0:00:43]} 57. Ra5 {[%clk 0:00:16]}  Re6 {[%clk 0:00:36]} 58. Rh5 {[%clk 0:00:15]}  Ke4 {[%clk 0:00:20]} 59. Ke2 {[%clk 0:00:14]}  Rd6 {[%clk 0:00:20]} 60. Rg5 {[%clk 0:00:11]}  Kd4 {[%clk 0:00:16]} 61. Kd2 {[%clk 0:00:11]}  Kc4+ {[%clk 0:00:15]} 62. Kc2 {[%clk 0:00:11]}  Rd5 {[%clk 0:00:15]} 63. Rxd5 {[%clk 0:00:11]}  Kxd5 {[%clk 0:00:16]} 64. Kb3 {[%clk 0:00:12]}  a5 {[%clk 0:00:16]} 1/2-1/2


[Site "https://www.chess.com"]

[Event "Titled Tuesday Blitz October 04 Late 2022"]
[White "Duda, Jan-Krzysztof"]
[Black "Zakhartsov, Vladimir"]
[WhiteFideId "1170546"]
[BlackFideId "4145097"]
[WhiteElo "2779"]
[BlackElo "2492"]
[Result "1-0"]
[Round "05"]
[TimeControl "180+1"]
[Date "2022.10.04"]
[WhiteClock "0:01:45"]
[BlackClock "0:00:18"]

1. Nf3 {[%clk 0:03:00]}  d5 {[%clk 0:02:58]} 2. c4 {[%clk 0:03:00]}  d4 {[%clk 0:02:48]} 3. b4 {[%clk 0:03:00]}  g5 {[%clk 0:02:47]} 4. h3 {[%clk 0:02:55]}  Bg7 {[%clk 0:02:44]} 5. Nxg5 {[%clk 0:02:55]}  e5 {[%clk 0:02:39]} 6. Ne4 {[%clk 0:02:53]}  f5 {[%clk 0:02:38]} 7. Nc5 {[%clk 0:02:54]}  b6 {[%clk 0:02:29]} 8. Qa4+ {[%clk 0:02:53]}  c6 {[%clk 0:02:28]} 9. Nd3 {[%clk 0:02:50]}  Ne7 {[%clk 0:02:23]} 10. Bb2 {[%clk 0:02:36]}  O-O {[%clk 0:02:20]} 11. g3 {[%clk 0:02:31]}  Be6 {[%clk 0:02:14]} 12. Na3 {[%clk 0:02:28]}  Ng6 {[%clk 0:02:04]} 13. h4 {[%clk 0:02:19]}  e4 {[%clk 0:01:45]} 14. h5 {[%clk 0:02:18]}  exd3 {[%clk 0:01:34]} 15. hxg6 {[%clk 0:02:18]}  hxg6 {[%clk 0:01:34]} 16. exd3 {[%clk 0:02:17]}  Re8 {[%clk 0:01:18]} 17. O-O-O {[%clk 0:02:16]}  a5 {[%clk 0:01:16]} 18. b5 {[%clk 0:02:15]}  Nd7 {[%clk 0:00:55]} 19. bxc6 {[%clk 0:02:07]}  Nc5 {[%clk 0:00:56]} 20. Qb5 {[%clk 0:02:08]}  Qc7 {[%clk 0:00:52]} 21. Nc2 {[%clk 0:02:05]}  Rad8 {[%clk 0:00:45]} 22. Rh4 {[%clk 0:02:05]}  g5 {[%clk 0:00:19]} 23. Rxd4 {[%clk 0:01:56]}  Bxd4 {[%clk 0:00:18]} 24. Bxd4 {[%clk 0:01:45]} 1-0


[Site "https://www.chess.com"]

[Event "Titled Tuesday Blitz October 04 Late 2022"]
[White "Howell, David W L"]
[Black "Nepomniachtchi, Ian"]
[WhiteFideId "410608"]
[BlackFideId "4168119"]
[WhiteElo "2567"]
[BlackElo "2781"]
[Result "0-1"]
[Round "05"]
[TimeControl "180+1"]
[Date "2022.10.04"]
[WhiteClock "0:00:02"]
[BlackClock "0:00:18"]

1. e4 {[%clk 0:02:54]}  c5 {[%clk 0:03:00]} 2. c3 {[%clk 0:02:52]}  d5 {[%clk 0:02:57]} 3. exd5 {[%clk 0:02:53]}  Qxd5 {[%clk 0:02:58]} 4. d4 {[%clk 0:02:53]}  Nf6 {[%clk 0:02:57]} 5. Nf3 {[%clk 0:02:54]}  e6 {[%clk 0:02:57]} 6. Be3 {[%clk 0:02:51]}  Nc6 {[%clk 0:02:51]} 7. a3 {[%clk 0:02:44]}  cxd4 {[%clk 0:02:49]} 8. cxd4 {[%clk 0:02:45]}  Be7 {[%clk 0:02:46]} 9. Nc3 {[%clk 0:02:45]}  Qd8 {[%clk 0:02:45]} 10. Bd3 {[%clk 0:02:45]}  O-O {[%clk 0:02:43]} 11. Qc2 {[%clk 0:02:46]}  b6 {[%clk 0:02:41]} 12. Ne4 {[%clk 0:02:45]}  Bb7 {[%clk 0:02:41]} 13. Nxf6+ {[%clk 0:02:45]}  Bxf6 {[%clk 0:02:42]} 14. Bxh7+ {[%clk 0:02:45]}  Kh8 {[%clk 0:02:42]} 15. Be4 {[%clk 0:02:39]}  Rc8 {[%clk 0:02:34]} 16. Qe2 {[%clk 0:02:40]}  Na5 {[%clk 0:01:30]} 17. Bxb7 {[%clk 0:02:05]}  Nxb7 {[%clk 0:01:31]} 18. O-O {[%clk 0:02:05]}  Qd5 {[%clk 0:01:31]} 19. Rac1 {[%clk 0:02:05]}  Nd6 {[%clk 0:01:30]} 20. Qa6 {[%clk 0:01:54]}  Nc4 {[%clk 0:01:28]} 21. b3 {[%clk 0:01:43]}  Nd6 {[%clk 0:01:27]} 22. Qxa7 {[%clk 0:01:18]}  Qxb3 {[%clk 0:01:27]} 23. Rb1 {[%clk 0:01:06]}  Qd5 {[%clk 0:01:26]} 24. Qxb6 {[%clk 0:01:06]}  Nc4 {[%clk 0:01:22]} 25. Qb7 {[%clk 0:00:58]}  Qxb7 {[%clk 0:01:15]} 26. Rxb7 {[%clk 0:00:58]}  Nxa3 {[%clk 0:01:16]} 27. g4 {[%clk 0:00:43]}  Nc4 {[%clk 0:01:08]} 28. g5 {[%clk 0:00:39]}  Bd8 {[%clk 0:01:08]} 29. Ra1 {[%clk 0:00:34]}  Nd6 {[%clk 0:01:04]} 30. Rd7 {[%clk 0:00:34]}  Nf5 {[%clk 0:01:02]} 31. Raa7 {[%clk 0:00:34]}  Kg8 {[%clk 0:01:00]} 32. Bf4 {[%clk 0:00:29]}  Rc2 {[%clk 0:00:49]} 33. h4 {[%clk 0:00:27]}  Bb6 {[%clk 0:00:40]} 34. Rab7 {[%clk 0:00:27]}  Ba5 {[%clk 0:00:41]} 35. d5 {[%clk 0:00:20]}  Rc4 {[%clk 0:00:36]} 36. Be5 {[%clk 0:00:10]}  exd5 {[%clk 0:00:35]} 37. Rxd5 {[%clk 0:00:11]}  Bb4 {[%clk 0:00:33]} 38. h5 {[%clk 0:00:06]}  Bc5 {[%clk 0:00:32]} 39. Kg2 {[%clk 0:00:05]}  Rc2 {[%clk 0:00:30]} 40. Kh3 {[%clk 0:00:03]}  Bxf2 {[%clk 0:00:28]} 41. Rd3 {[%clk 0:00:02]}  Bc5 {[%clk 0:00:22]} 42. Rc7 {[%clk 0:00:03]}  Re8 {[%clk 0:00:21]} 43. Kg4 {[%clk 0:00:02]}  g6 {[%clk 0:00:18]} 44. hxg6 {[%clk 0:00:02]}  fxg6 {[%clk 0:00:19]} 45. Bf4 {[%clk 0:00:02]}  Rc4 {[%clk 0:00:18]} 0-1


[Site "https://www.chess.com"]

[Event "Titled Tuesday Blitz October 04 Late 2022"]
[White "Kamsky, Gata"]
[Black "Naroditsky, Daniel"]
[WhiteFideId "2000024"]
[BlackFideId "2026961"]
[WhiteElo "2666"]
[BlackElo "2628"]
[Result "1-0"]
[Round "05"]
[TimeControl "180+1"]
[Date "2022.10.04"]
[WhiteClock "0:00:03"]
[BlackClock "0:00:02"]

1. d4 {[%clk 0:03:00]}  Nf6 {[%clk 0:02:55]} 2. Bf4 {[%clk 0:02:58]}  c5 {[%clk 0:02:55]} 3. e3 {[%clk 0:02:58]}  cxd4 {[%clk 0:02:55]} 4. exd4 {[%clk 0:02:57]}  Qb6 {[%clk 0:02:56]} 5. Na3 {[%clk 0:02:48]}  d6 {[%clk 0:02:50]} 6. Nc4 {[%clk 0:02:44]}  Qc7 {[%clk 0:02:50]} 7. h3 {[%clk 0:02:39]}  g6 {[%clk 0:02:51]} 8. Nf3 {[%clk 0:02:38]}  Bg7 {[%clk 0:02:51]} 9. Ne3 {[%clk 0:02:31]}  O-O {[%clk 0:02:50]} 10. Be2 {[%clk 0:02:30]}  b6 {[%clk 0:02:49]} 11. O-O {[%clk 0:02:25]}  Bb7 {[%clk 0:02:50]} 12. c4 {[%clk 0:02:24]}  Nbd7 {[%clk 0:02:50]} 13. Bh2 {[%clk 0:02:21]}  Rac8 {[%clk 0:02:49]} 14. Rc1 {[%clk 0:02:20]}  Qb8 {[%clk 0:02:49]} 15. d5 {[%clk 0:02:15]}  b5 {[%clk 0:02:40]} 16. b3 {[%clk 0:01:43]}  bxc4 {[%clk 0:02:39]} 17. bxc4 {[%clk 0:01:42]}  Nc5 {[%clk 0:02:32]} 18. Nd4 {[%clk 0:01:42]}  Qc7 {[%clk 0:02:23]} 19. Bf3 {[%clk 0:01:35]}  Nfe4 {[%clk 0:01:48]} 20. Bg4 {[%clk 0:01:05]}  f5 {[%clk 0:01:45]} 21. Bf3 {[%clk 0:01:02]}  Ng5 {[%clk 0:01:24]} 22. Bf4 {[%clk 0:00:55]}  Nxf3+ {[%clk 0:01:20]} 23. Nxf3 {[%clk 0:00:55]}  h6 {[%clk 0:01:11]} 24. h4 {[%clk 0:00:41]}  Qd7 {[%clk 0:01:11]} 25. Re1 {[%clk 0:00:38]}  Ne4 {[%clk 0:01:08]} 26. Qd3 {[%clk 0:00:34]}  Qa4 {[%clk 0:00:59]} 27. Rc2 {[%clk 0:00:33]}  Ba6 {[%clk 0:00:55]} 28. Nd4 {[%clk 0:00:30]}  Nc5 {[%clk 0:00:44]} 29. Qd1 {[%clk 0:00:30]}  Qd7 {[%clk 0:00:38]} 30. Nc6 {[%clk 0:00:21]}  e5 {[%clk 0:00:31]} 31. dxe6 {[%clk 0:00:16]}  Qxc6 {[%clk 0:00:31]} 32. Nd5 {[%clk 0:00:15]}  Rfe8 {[%clk 0:00:31]} 33. e7 {[%clk 0:00:15]}  Ne4 {[%clk 0:00:28]} 34. f3 {[%clk 0:00:15]}  Nf6 {[%clk 0:00:21]} 35. Nxf6+ {[%clk 0:00:12]}  Bxf6 {[%clk 0:00:22]} 36. Bxd6 {[%clk 0:00:12]}  Bxc4 {[%clk 0:00:21]} 37. Kh1 {[%clk 0:00:12]}  Bxh4 {[%clk 0:00:15]} 38. Re5 {[%clk 0:00:11]}  Qd7 {[%clk 0:00:14]} 39. Rd2 {[%clk 0:00:11]}  Bf7 {[%clk 0:00:12]} 40. Ba3 {[%clk 0:00:09]}  Qc7 {[%clk 0:00:10]} 41. Qe2 {[%clk 0:00:09]}  Bg3 {[%clk 0:00:09]} 42. Re3 {[%clk 0:00:07]}  Bf4 {[%clk 0:00:10]} 43. Bb2 {[%clk 0:00:05]}  Bxe3 {[%clk 0:00:07]} 44. Qxe3 {[%clk 0:00:05]}  Qxe7 {[%clk 0:00:02]} 45. Qxh6 {[%clk 0:00:05]}  Qe1+ {[%clk 0:00:02]} 46. Kh2 {[%clk 0:00:05]}  Re5 {[%clk 0:00:03]} 47. f4 {[%clk 0:00:05]}  Rce8 {[%clk 0:00:02]} 48. fxe5 {[%clk 0:00:04]}  Qe4 {[%clk 0:00:02]} 49. e6 {[%clk 0:00:03]} 1-0


[Site "https://www.chess.com"]

[Event "Titled Tuesday Blitz October 04 Late 2022"]
[White "Makarian, Rudik"]
[Black "Jobava, Baadur"]
[WhiteFideId "44105681"]
[BlackFideId "13601520"]
[WhiteElo "2405"]
[BlackElo "2582"]
[Result "1-0"]
[Round "05"]
[TimeControl "180+1"]
[Date "2022.10.04"]
[WhiteClock "0:00:25"]
[BlackClock "0:00:01"]

1. d3 {[%clk 0:02:57]}  d5 {[%clk 0:02:59]} 2. f4 {[%clk 0:02:56]}  b6 {[%clk 0:02:58]} 3. Nf3 {[%clk 0:02:57]}  Bb7 {[%clk 0:02:58]} 4. g3 {[%clk 0:02:57]}  g6 {[%clk 0:02:56]} 5. Bg2 {[%clk 0:02:58]}  Bg7 {[%clk 0:02:57]} 6. O-O {[%clk 0:02:59]}  Nd7 {[%clk 0:02:55]} 7. Qe1 {[%clk 0:02:59]}  e6 {[%clk 0:02:55]} 8. e4 {[%clk 0:02:58]}  dxe4 {[%clk 0:02:52]} 9. dxe4 {[%clk 0:02:58]}  Ne7 {[%clk 0:02:52]} 10. Kh1 {[%clk 0:02:56]}  O-O {[%clk 0:02:52]} 11. Nc3 {[%clk 0:02:56]}  Nc5 {[%clk 0:02:50]} 12. Bd2 {[%clk 0:02:41]}  Qc8 {[%clk 0:02:36]} 13. b4 {[%clk 0:02:19]}  Nd7 {[%clk 0:02:23]} 14. Rd1 {[%clk 0:02:14]}  a5 {[%clk 0:02:22]} 15. b5 {[%clk 0:02:13]}  Nc5 {[%clk 0:02:21]} 16. e5 {[%clk 0:02:07]}  Nd5 {[%clk 0:02:22]} 17. g4 {[%clk 0:02:00]}  a4 {[%clk 0:02:13]} 18. Be3 {[%clk 0:01:39]}  Nxe3 {[%clk 0:02:08]} 19. Qxe3 {[%clk 0:01:40]}  a3 {[%clk 0:02:07]} 20. Nd4 {[%clk 0:01:35]}  Bxg2+ {[%clk 0:01:58]} 21. Kxg2 {[%clk 0:01:36]}  f5 {[%clk 0:01:04]} 22. Nc6 {[%clk 0:01:32]}  Qe8 {[%clk 0:00:55]} 23. g5 {[%clk 0:01:31]}  Nb7 {[%clk 0:00:49]} 24. Ne2 {[%clk 0:01:27]}  Rf7 {[%clk 0:00:48]} 25. Rd2 {[%clk 0:01:21]}  Na5 {[%clk 0:00:45]} 26. Nxa5 {[%clk 0:01:18]}  Rxa5 {[%clk 0:00:44]} 27. c4 {[%clk 0:01:14]}  Bf8 {[%clk 0:00:43]} 28. Rfd1 {[%clk 0:01:14]}  Ra8 {[%clk 0:00:43]} 29. Qf3 {[%clk 0:01:10]}  Bb4 {[%clk 0:00:43]} 30. Rd3 {[%clk 0:00:55]}  Kg7 {[%clk 0:00:39]} 31. Nd4 {[%clk 0:00:53]}  Bc5 {[%clk 0:00:19]} 32. Nc6 {[%clk 0:00:52]}  Qc8 {[%clk 0:00:09]} 33. Qh3 {[%clk 0:00:43]}  Qb7 {[%clk 0:00:05]} 34. Rd8 {[%clk 0:00:38]}  Rxd8 {[%clk 0:00:05]} 35. Rxd8 {[%clk 0:00:39]}  Bf8 {[%clk 0:00:05]} 36. Kf1 {[%clk 0:00:33]}  Kg8 {[%clk 0:00:01]} 37. Rb8 {[%clk 0:00:25]} 1-0


[Site "https://www.chess.com"]

[Event "Titled Tuesday Blitz October 04 Late 2022"]
[White "Quesada Perez, Yuniesky"]
[Black "Barria Zuniga, Daniel"]
[WhiteFideId "3504409"]
[BlackFideId "3400816"]
[WhiteElo "2599"]
[BlackElo "2414"]
[Result "0-1"]
[Round "05"]
[TimeControl "180+1"]
[Date "2022.10.04"]
[WhiteClock "0:00:21"]
[BlackClock "0:00:10"]

1. e4 {[%clk 0:03:00]}  c5 {[%clk 0:02:57]} 2. Nf3 {[%clk 0:03:00]}  Nc6 {[%clk 0:02:57]} 3. Bb5 {[%clk 0:02:57]}  Na5 {[%clk 0:02:56]} 4. c3 {[%clk 0:02:56]}  a6 {[%clk 0:02:55]} 5. Ba4 {[%clk 0:02:56]}  b5 {[%clk 0:02:55]} 6. Bc2 {[%clk 0:02:56]}  Bb7 {[%clk 0:02:54]} 7. O-O {[%clk 0:02:56]}  e6 {[%clk 0:02:51]} 8. d4 {[%clk 0:02:53]}  cxd4 {[%clk 0:02:49]} 9. cxd4 {[%clk 0:02:53]}  Nf6 {[%clk 0:02:48]} 10. Re1 {[%clk 0:02:48]}  Be7 {[%clk 0:02:46]} 11. Nc3 {[%clk 0:02:43]}  O-O {[%clk 0:02:43]} 12. d5 {[%clk 0:02:42]}  d6 {[%clk 0:02:29]} 13. dxe6 {[%clk 0:02:31]}  fxe6 {[%clk 0:02:28]} 14. Nd4 {[%clk 0:02:30]}  Qd7 {[%clk 0:02:24]} 15. Qd3 {[%clk 0:02:17]}  Rae8 {[%clk 0:01:44]} 16. Qh3 {[%clk 0:02:07]}  Bd8 {[%clk 0:01:44]} 17. Bg5 {[%clk 0:01:54]}  Bb6 {[%clk 0:01:26]} 18. Rad1 {[%clk 0:01:48]}  Bc8 {[%clk 0:01:24]} 19. Qh4 {[%clk 0:01:41]}  Qc7 {[%clk 0:01:13]} 20. a3 {[%clk 0:01:23]}  Nc4 {[%clk 0:01:12]} 21. Bxf6 {[%clk 0:00:55]}  gxf6 {[%clk 0:01:02]} 22. Rd3 {[%clk 0:00:45]}  Kh8 {[%clk 0:00:54]} 23. Nde2 {[%clk 0:00:34]}  Nxb2 {[%clk 0:00:32]} 24. Rg3 {[%clk 0:00:34]}  Nc4 {[%clk 0:00:27]} 25. Nf4 {[%clk 0:00:33]}  Ne5 {[%clk 0:00:26]} 26. Bb3 {[%clk 0:00:29]}  Qf7 {[%clk 0:00:22]} 27. h3 {[%clk 0:00:25]}  Rg8 {[%clk 0:00:19]} 28. Nce2 {[%clk 0:00:24]}  Rxg3 {[%clk 0:00:19]} 29. Nxg3 {[%clk 0:00:24]}  Rg8 {[%clk 0:00:19]} 30. Rd1 {[%clk 0:00:23]}  Bc5 {[%clk 0:00:18]} 31. Nf5 {[%clk 0:00:21]}  Nf3+ {[%clk 0:00:10]} 0-1


[Site "https://www.chess.com"]

[Event "Titled Tuesday Blitz October 04 Late 2022"]
[White "Svane, Rasmus"]
[Black "Nasuta, Grzegorz"]
[WhiteFideId "4657101"]
[BlackFideId "1141686"]
[WhiteElo "2674"]
[BlackElo "2442"]
[Result "1-0"]
[Round "05"]
[TimeControl "180+1"]
[Date "2022.10.04"]
[WhiteClock "0:00:47"]
[BlackClock "0:00:07"]

1. Nf3 {[%clk 0:03:00]}  d5 {[%clk 0:02:56]} 2. g3 {[%clk 0:03:00]}  Nf6 {[%clk 0:02:50]} 3. Bg2 {[%clk 0:03:01]}  Bg4 {[%clk 0:02:48]} 4. O-O {[%clk 0:03:01]}  e6 {[%clk 0:02:47]} 5. h3 {[%clk 0:03:02]}  Bh5 {[%clk 0:02:47]} 6. d4 {[%clk 0:03:02]}  Nbd7 {[%clk 0:02:37]} 7. c4 {[%clk 0:03:03]}  c6 {[%clk 0:02:37]} 8. cxd5 {[%clk 0:03:03]}  exd5 {[%clk 0:02:36]} 9. Ne5 {[%clk 0:03:04]}  Ne4 {[%clk 0:02:35]} 10. Bxe4 {[%clk 0:03:01]}  dxe4 {[%clk 0:02:36]} 11. Nc3 {[%clk 0:03:01]}  f6 {[%clk 0:02:35]} 12. Nc4 {[%clk 0:02:34]}  Bg6 {[%clk 0:02:12]} 13. d5 {[%clk 0:02:21]}  Nb6 {[%clk 0:02:10]} 14. Qb3 {[%clk 0:02:08]}  Nxc4 {[%clk 0:01:24]} 15. Qxc4 {[%clk 0:02:08]}  cxd5 {[%clk 0:01:14]} 16. Nxd5 {[%clk 0:02:09]}  Rc8 {[%clk 0:01:14]} 17. Qb3 {[%clk 0:01:44]}  Bc5 {[%clk 0:00:46]} 18. Rd1 {[%clk 0:01:44]}  Qd6 {[%clk 0:00:20]} 19. Bf4 {[%clk 0:01:19]}  Qc6 {[%clk 0:00:20]} 20. Rac1 {[%clk 0:01:20]}  Bf7 {[%clk 0:00:20]} 21. Qc4 {[%clk 0:01:03]}  Bxf2+ {[%clk 0:00:20]} 22. Kxf2 {[%clk 0:00:56]}  Qxc4 {[%clk 0:00:21]} 23. Rxc4 {[%clk 0:00:51]}  Rxc4 {[%clk 0:00:22]} 24. Nc7+ {[%clk 0:00:52]}  Ke7 {[%clk 0:00:19]} 25. Bd6+ {[%clk 0:00:46]}  Kd7 {[%clk 0:00:20]} 26. Bf4+ {[%clk 0:00:46]}  Kc8 {[%clk 0:00:20]} 27. Nb5 {[%clk 0:00:47]}  Rc6 {[%clk 0:00:07]} 28. Nxa7# {[%clk 0:00:47]} 1-0


[Site "https://www.chess.com"]

[Event "Titled Tuesday Blitz October 04 Late 2022"]
[White "Zhigalko, Sergei"]
[Black "Goltsev, Dmitry"]
[WhiteFideId "13502956"]
[BlackFideId "24176710"]
[WhiteElo "2662"]
[BlackElo "2257"]
[Result "0-1"]
[Round "05"]
[TimeControl "180+1"]
[Date "2022.10.04"]
[WhiteClock "0:00:05"]
[BlackClock "0:00:38"]

1. e4 {[%clk 0:03:00]}  e6 {[%clk 0:02:51]} 2. d4 {[%clk 0:03:01]}  d5 {[%clk 0:02:52]} 3. e5 {[%clk 0:03:01]}  c5 {[%clk 0:02:52]} 4. c3 {[%clk 0:03:02]}  Nc6 {[%clk 0:02:52]} 5. Nf3 {[%clk 0:03:02]}  Nge7 {[%clk 0:02:52]} 6. Na3 {[%clk 0:03:02]}  Nf5 {[%clk 0:02:51]} 7. Nc2 {[%clk 0:03:02]}  cxd4 {[%clk 0:02:50]} 8. cxd4 {[%clk 0:03:03]}  Qb6 {[%clk 0:02:51]} 9. Bd3 {[%clk 0:03:03]}  Nb4 {[%clk 0:02:39]} 10. Nxb4 {[%clk 0:02:56]}  Bxb4+ {[%clk 0:02:40]} 11. Kf1 {[%clk 0:02:57]}  h5 {[%clk 0:02:34]} 12. g3 {[%clk 0:01:46]}  Bd7 {[%clk 0:02:29]} 13. a3 {[%clk 0:01:39]}  Be7 {[%clk 0:02:27]} 14. Kg2 {[%clk 0:01:38]}  h4 {[%clk 0:02:15]} 15. h3 {[%clk 0:01:24]}  hxg3 {[%clk 0:02:12]} 16. Bxf5 {[%clk 0:01:06]}  exf5 {[%clk 0:02:09]} 17. fxg3 {[%clk 0:01:07]}  Rc8 {[%clk 0:02:06]} 18. Re1 {[%clk 0:01:00]}  f4 {[%clk 0:01:51]} 19. g4 {[%clk 0:01:00]}  Qg6 {[%clk 0:01:51]} 20. e6 {[%clk 0:00:51]}  Bxe6 {[%clk 0:01:38]} 21. Bxf4 {[%clk 0:00:51]}  Rxh3 {[%clk 0:01:26]} 22. Kxh3 {[%clk 0:00:31]}  Qxg4+ {[%clk 0:01:26]} 23. Kh2 {[%clk 0:00:28]}  Qxf4+ {[%clk 0:01:26]} 24. Kg2 {[%clk 0:00:28]}  Qg4+ {[%clk 0:01:12]} 25. Kf2 {[%clk 0:00:24]}  Bh4+ {[%clk 0:01:11]} 26. Nxh4 {[%clk 0:00:24]}  Qxh4+ {[%clk 0:01:12]} 27. Ke3 {[%clk 0:00:20]}  Qe4+ {[%clk 0:01:05]} 28. Kd2 {[%clk 0:00:06]}  Qxd4+ {[%clk 0:01:04]} 29. Ke2 {[%clk 0:00:06]}  Qe4+ {[%clk 0:00:54]} 30. Kf1 {[%clk 0:00:05]}  Qf5+ {[%clk 0:00:46]} 31. Kg1 {[%clk 0:00:04]}  Rc4 {[%clk 0:00:46]} 32. Re2 {[%clk 0:00:03]}  Rg4+ {[%clk 0:00:42]} 33. Rg2 {[%clk 0:00:03]}  Rh4 {[%clk 0:00:42]} 34. Qd2 {[%clk 0:00:02]}  Qh5 {[%clk 0:00:41]} 35. Re1 {[%clk 0:00:02]}  Rh1+ {[%clk 0:00:40]} 36. Kf2 {[%clk 0:00:03]}  Qh4+ {[%clk 0:00:38]} 37. Ke2 {[%clk 0:00:02]}  Bg4+ {[%clk 0:00:37]} 38. Kd3+ {[%clk 0:00:02]}  Rxe1 {[%clk 0:00:36]} 39. Rxg4 {[%clk 0:00:02]}  Qxg4 {[%clk 0:00:36]} 40. Qxe1+ {[%clk 0:00:03]}  Qe4+ {[%clk 0:00:36]} 41. Qxe4+ {[%clk 0:00:04]}  dxe4+ {[%clk 0:00:37]} 42. Kxe4 {[%clk 0:00:05]}  Ke7 {[%clk 0:00:38]} 0-1


[Site "https://www.chess.com"]